bitfinex/quotes_ETHUSD_20241106
["timestamp","ask_amount","ask_price","bid_price","bid_amount"]
[1730884822032,4.5952,2616.7,2616.1,3.8224]
[1730884822216,3.82175,2616.6,2616.1,3.8224]
[1730884822401,3.82175,2616.6,2615.6,0.8255]
[1730884822728,0.804,2616.2,2615.7,7.64589]
[1730884822900,0.804,2616.2,2615.2,3.83371]
[1730884822901,3.82263,2616.0,2615.5,3.82325]
[1730884823104,3.82258,2616.1,2615.3,3.82358]
[1730884823304,3.82279,2615.9,2615.3,7.64712]
[1730884823509,3.82279,2615.9,2615.4,3.82348]
[1730884823711,0.382279,2615.8,2615.3,3.82355]
[1730884823922,0.382279,2615.8,2615.5,3.82333]
[1730884824123,4.62636,2616.2,2615.7,3.82306]
[1730884824304,0.804,2616.2,2615.8,3.82283]
[1730884824503,4.281425,2616.5,2615.8,0.787]
[1730884824847,0.7601,2616.4,2615.5,3.82336]
[1730884824995,3.82245,2616.2,2615.6,3.82321]
[1730884825198,4.586984,2616.1,2615.6,3.82321]
[1730884825399,0.7601,2616.4,2615.9,3.8227]
[1730884825599,0.7601,2616.4,2616.0,3.82262]
[1730884826133,0.7601,2616.4,2616.0,3.82252]
[1730884826337,0.7601,2616.4,2615.7,3.82296]
[1730884826338,4.58224,2616.4,2615.7,3.82296]
[1730884826546,4.280494,2616.3,2615.8,3.82287]
[1730884826745,0.458224,2616.3,2615.8,3.82283]
[1730884826913,0.458224,2616.3,2615.8,4.60472]
[1730884827116,0.8114,2617.5,2616.4,4.60934]
[1730884827498,3.82118,2617.0,2616.6,3.82175]
[1730884827618,7.64243,2617.0,2616.5,3.82179]
[1730884827803,3.82137,2616.9,2616.4,4.60942]
[1730884828004,3.82118,2617.0,2616.5,3.82177]
[1730884828205,0.382118,2616.9,2616.5,3.82177]
[1730884829040,0.382118,2616.9,2616.6,3.82173]
[1730884829340,0.382118,2616.9,2616.5,3.82189]
[1730884829943,4.203428,2616.9,2616.4,4.60944]
[1730884830119,4.6239198,2616.8,2616.4,4.60936]
[1730884830306,0.8024598,2616.8,2616.4,3.82195]
[1730884830629,0.8024598,2616.8,2616.5,3.82188]
[1730884830800,0.8024598,2616.8,2616.4,3.82195]
[1730884831205,0.8024598,2616.8,2616.5,3.82189]
[1730884831645,0.8024598,2616.8,2616.4,3.82195]
[1730884831819,0.8024598,2616.8,2616.5,3.82178]
[1730884832845,0.8024598,2616.8,2616.6,3.82173]
[1730884833025,0.8312,2616.9,2616.6,3.82173]
[1730884833422,0.8312,2616.9,2616.6,3.82167]
[1730884834432,0.7695,2617.2,2616.8,3.82139]
[1730884834642,4.59045,2617.2,2616.7,3.82154]
[1730884834947,0.841128,2617.1,2616.7,3.82154]
[1730884835177,0.841128,2617.1,2616.8,3.82145]
[1730884835686,0.841128,2617.1,2617.0,3.82116]
[1730884835882,4.59245,2617.5,2617.0,3.82116]
[1730884836064,4.59242,2617.5,2617.0,3.82116]
[1730884836259,0.7719,2617.5,2617.1,3.82092]
[1730884836792,4.59197,2617.8,2617.3,3.82065]
[1730884836992,0.7719,2617.8,2617.4,3.82057]
[1730884837187,0.459185,2617.7,2617.4,3.82057]
[1730884837362,0.459185,2617.7,2617.2,3.82075]
[1730884837545,0.459185,2617.7,2617.4,3.82056]
[1730884838366,0.459185,2617.7,2617.2,7.64151]
[1730884838562,0.5051095,2617.6,2617.1,3.821]
[1730884838858,0.5051095,2617.6,2617.0,7.64214]
[1730884839202,0.5051095,2617.6,2617.0,3.82105]
[1730884839489,4.3254095,2617.6,2617.1,3.82094]
[1730884839988,0.5051095,2617.6,2617.2,3.82086]
[1730884840652,0.5051095,2617.6,2617.3,3.82069]
[1730884841646,0.5051095,2617.6,2617.1,3.82091]
[1730884841993,4.3254095,2617.6,2617.1,3.82091]
[1730884842197,0.81455695,2617.5,2617.1,3.82102]
[1730884842728,0.5051095,2617.6,2617.2,3.82079]
[1730884842894,0.775,2618.1,2617.6,3.82021]
[1730884843096,3.81905,2618.5,2618.0,3.81962]
[1730884843307,0.459405,2618.4,2618.1,3.81945]
[1730884843509,0.775,2618.6,2617.5,0.8284]
[1730884843715,3.81847,2618.9,2618.2,3.81928]
[1730884844022,3.81854,2618.8,2618.2,7.63861]
[1730884844193,3.81854,2618.8,2618.2,3.81928]
[1730884844516,3.81854,2618.8,2618.3,3.81925]
[1730884845292,4.59347,2618.9,2618.3,3.81925]
[1730884845488,4.59347,2618.9,2618.3,0.3814]
[1730884845823,3.81855,2618.8,2618.3,3.81926]
[1730884846366,4.59347,2618.9,2618.2,3.81928]
[1730884846531,8.41199,2618.9,2618.3,3.81917]
[1730884846682,4.59347,2618.9,2618.3,3.81917]
[1730884847295,3.81861,2618.8,2618.3,3.81917]
[1730884847982,0.775,2618.9,2618.4,3.81905]
[1730884848225,4.59347,2618.9,2618.4,3.81905]
[1730884848417,3.81855,2618.8,2618.3,3.81914]
[1730884848720,3.81854,2618.8,2618.3,3.81914]
[1730884849435,4.59339,2618.9,2618.4,3.81911]
[1730884849736,0.891834,2619.0,2618.9,3.81839]
[1730884849936,0.891834,2619.0,2618.9,4.57949]
[1730884850113,0.891834,2619.0,2618.9,7.65585016]
[1730884850614,0.891834,2619.0,2618.9,8.12949]
[1730884851135,0.891834,2619.0,2618.9,12.60196414]
[1730884851490,0.20208713,2619.0,2618.9,12.60196414]
[1730884851692,0.8191,2620.1,2619.7,3.81713]
[1730884851909,4.61569,2620.4,2619.9,3.81684]
[1730884852147,0.7994,2620.4,2620.0,3.81679]
[1730884852292,0.7994,2620.4,2619.3,3.12309979]
[1730884852488,3.81643,2620.3,2619.7,3.81718]
[1730884852734,3.8168,2620.0,2619.3,3.89399799]
[1730884852892,3.81656,2620.2,2619.5,3.81751]
[1730884853233,4.61568,2620.4,2619.6,3.81737]
[1730884853392,3.81643,2620.3,2619.7,3.81723]
[1730884853933,3.81643,2620.3,2619.8,3.81708]
[1730884854234,3.81636,2620.3,2619.8,3.81708]
[1730884854390,0.7994,2620.4,2620.2,3.81648]
[1730884854594,0.7729,2620.7,2620.2,3.81642]
[1730884854915,3.816,2620.6,2620.0,3.81667]
[1730884855403,1.154474,2620.7,2620.0,3.81667]
[1730884855604,1.154474,2620.7,2620.1,3.8165]
[1730884855827,4.970374,2620.7,2619.8,3.81704]
[1730884856033,3.81615,2620.5,2619.9,3.81682]
[1730884856191,0.4970374,2620.6,2620.2,4.6167]
[1730884856611,0.4970374,2620.6,2620.0,3.81672]
[1730884856928,1.20480327,2621.0,2619.9,3.81682]
[1730884856929,0.8061,2621.0,2619.9,3.81682]
[1730884857228,3.81589,2620.7,2620.0,3.89297486]
[1730884857441,0.763155,2620.6,2620.0,3.89297486]
[1730884858013,4.62039,2620.5,2619.8,3.81698]
[1730884858328,4.62036,2620.5,2619.8,3.81698]
[1730884859233,4.62036,2620.5,2620.0,3.81678]
[1730884859931,4.62034,2620.5,2619.9,3.8169]
[1730884860111,4.3545715,2620.4,2619.9,3.8169]
[1730884860295,3.81637,2620.3,2619.7,4.57329]
[1730884860494,3.8165,2620.2,2619.7,4.57329]
[1730884860690,0.763287,2620.1,2619.7,8.39043]
[1730884860924,0.763287,2620.1,2619.7,8.39037]
[1730884861636,0.763287,2620.1,2619.8,3.81699]
[1730884861807,4.6334,2619.8,2619.1,3.81801]
[1730884862010,4.28071,2619.7,2619.1,3.81801]
[1730884862200,3.8175,2619.6,2619.1,3.81801]
[1730884862908,0.46334,2619.7,2618.7,4.64658]
[1730884863124,3.81791,2619.3,2618.8,3.81853]
[1730884863449,0.758,2619.7,2618.3,0.7567]
[1730884863631,3.81832,2619.0,2618.3,0.7567]
[1730884863806,3.01,2619.9,2618.5,3.81889]
[1730884863807,0.758,2618.9,2618.5,3.81889]
[1730884864135,3.0,2619.9,2618.3,4.57586]
[1730884864136,7.63562,2619.3,2618.3,4.57586]
[1730884864341,3.81848,2618.9,2618.3,8.39503]
[1730884864543,3.81781,2619.3,2618.3,8.39503]
[1730884864544,3.8179,2619.3,2618.6,3.81875]
[1730884864739,0.7537,2619.4,2618.8,3.81842]
[1730884865162,3.83644,2620.3,2618.3,0.7567]
[1730884865163,4.61142,2619.7,2619.1,3.818]
[1730884865313,0.7941,2619.4,2618.5,3.81898]
[1730884865636,3.81795,2619.2,2618.1,4.59697]
[1730884865838,3.8189,2618.6,2618.1,4.59697]
[1730884866503,3.8189,2618.6,2618.1,8.41645]
[1730884866833,3.8189,2618.6,2618.1,4.59697]
[1730884867045,3.81864,2618.8,2618.1,4.59697]
[1730884867046,3.81872,2618.7,2618.2,3.81936]
[1730884867214,4.582456,2618.7,2618.2,3.81936]
[1730884867642,3.81833,2619.0,2618.3,3.81919]
[1730884867805,3.81825,2619.0,2618.2,0.55]
[1730884867997,7.63664,2619.0,2618.4,3.81908]
[1730884868203,8.480194,2619.0,2618.4,3.81908]
[1730884868440,4.661804,2619.0,2618.5,3.8189]
[1730884868606,4.661804,2619.0,2618.3,3.81917]
[1730884868942,8.480174,2619.0,2618.4,3.81912]
[1730884869347,3.8184,2618.9,2618.4,3.81912]
[1730884869645,0.843554,2619.0,2618.3,3.81917]
[1730884869815,3.81849,2618.9,2618.4,3.81909]
[1730884870540,3.81832,2619.0,2618.5,3.81889]
[1730884870744,3.81832,2619.0,2618.4,3.81909]
[1730884870745,3.8184,2618.9,2618.4,3.81909]
[1730884871248,7.6369,2618.9,2618.4,3.81909]
[1730884871554,3.81886,2618.6,2618.1,3.7775]
[1730884871751,3.81899,2618.5,2618.1,0.7775]
[1730884872205,3.81868,2618.7,2618.1,4.59705]
[1730884872407,0.848091,2618.7,2618.2,3.81941]
[1730884872618,0.848091,2618.7,2618.3,3.81917]
[1730884872832,0.848091,2618.7,2618.2,3.81941]
[1730884873036,4.61151,2618.6,2618.0,3.8196]
[1730884873338,3.81906,2618.5,2618.0,3.8196]
[1730884873638,4.61145,2618.6,2618.1,3.81949]
[1730884874348,4.61145,2618.6,2618.0,3.8196]
[1730884874650,4.61145,2618.6,2618.1,3.81943]
[1730884875151,4.61145,2618.6,2618.0,3.81969]
[1730884875152,3.81905,2618.5,2618.0,3.81969]
[1730884875609,3.81905,2618.5,2618.0,7.63928]
[1730884876935,5.45446,2618.6,2618.1,3.81946]
[1730884877138,1.63561,2618.6,2617.8,0.7523]
[1730884877343,0.7926,2618.6,2618.2,3.81928]
[1730884879014,4.6115,2618.6,2618.1,3.81955]
[1730884879210,3.81899,2618.5,2618.0,7.63922]
[1730884879457,3.81899,2618.5,2618.0,3.8196]
[1730884880153,3.81899,2618.5,2618.1,3.81955]
[1730884880573,4.61149,2618.6,2618.1,3.81955]
[1730884880882,5.454521,2618.6,2618.2,3.81938]
[1730884881078,4.617,2618.9,2618.4,3.81906]
[1730884881243,4.61697,2618.9,2618.3,4.59809]
[1730884881436,4.61697,2618.9,2618.1,3.81947]
[1730884881437,3.81897,2618.6,2618.1,3.81947]
[1730884882171,3.81878,2618.7,2618.2,3.81932]
[1730884882473,3.81883,2618.6,2618.2,3.81932]
[1730884882857,3.81869,2618.7,2618.2,7.63863]
[1730884883061,0.7985,2618.9,2618.0,0.7697]
[1730884883282,4.6169,2618.9,2618.4,3.81902]
[1730884883568,3.81873,2618.7,2618.3,3.81927]
[1730884884075,3.81873,2618.7,2618.1,3.81945]
[1730884884240,3.81873,2618.7,2618.2,3.81939]
[1730884884575,3.81884,2618.6,2618.1,3.81945]
[1730884884733,0.381884,2618.5,2618.1,3.81945]
[1730884885783,4.200934,2618.5,2618.1,3.81945]
[1730884886440,4.200934,2618.5,2618.0,3.81969]
[1730884886771,0.381884,2618.5,2618.1,3.81948]
[1730884887064,3.819,2618.5,2618.1,3.81948]
[1730884887638,3.81893,2618.6,2618.1,3.81948]
[1730884888039,3.81893,2618.6,2618.1,7.63896]
[1730884888243,3.81893,2618.6,2618.1,3.81948]
[1730884888493,3.81899,2618.5,2618.1,3.81948]
[1730884889269,3.81963,2618.1,2617.6,3.82027]
[1730884889544,3.81929,2618.3,2617.8,3.81997]
[1730884889775,3.81949,2618.2,2617.7,3.82]
[1730884890087,4.5877,2618.4,2617.9,3.81974]
[1730884890241,5.42837,2618.4,2617.9,3.81974]
[1730884890448,5.42837,2618.4,2617.8,3.81995]
[1730884890759,3.81927,2618.3,2617.8,3.81995]
[1730884891647,3.81927,2618.3,2617.9,3.81984]
[1730884891849,3.81954,2618.2,2617.5,3.7544]
[1730884892079,3.81954,2618.2,2617.7,3.82012]
[1730884892256,4.362127,2618.3,2617.7,3.82012]
[1730884892592,0.542837,2618.3,2617.6,0.07639579]
[1730884892783,3.81944,2618.2,2617.8,3.81996]
[1730884893097,3.81944,2618.2,2617.6,3.82019]
[1730884893098,3.81941,2618.2,2617.7,3.82012]
[1730884893249,4.362167,2618.3,2617.8,3.81992]
[1730884893445,0.7685,2618.4,2617.9,3.81985]
[1730884893680,0.7685,2618.4,2618.0,3.8197]
[1730884894046,0.7685,2618.4,2618.3,3.81927]
[1730884894247,4.65051,2618.7,2618.1,3.81956]
[1730884894486,5.08253124,2618.7,2618.2,3.81934]
[1730884894659,1.26382124,2618.7,2618.2,3.81934]
[1730884894871,3.81893,2618.6,2618.1,3.81956]
[1730884895095,0.50827512,2618.6,2617.7,4.59295]
[1730884895266,3.81948,2618.2,2617.7,3.82002]
[1730884895463,4.201428,2618.2,2617.7,7.6401]
[1730884895852,4.201428,2618.2,2617.7,3.82002]
[1730884896054,3.81965,2618.1,2617.7,3.82002]
[1730884897000,8.020938,2618.2,2617.7,3.82002]
[1730884897683,3.81959,2618.1,2617.7,3.82002]
[1730884897881,4.64989,2618.0,2617.1,3.82092]
[1730884898087,4.64989,2618.0,2617.3,3.82063]
[1730884898254,3.82002,2617.8,2617.3,3.82063]
[1730884898892,3.82002,2617.8,2617.4,3.82055]
[1730884899179,4.667015,2617.8,2617.3,3.82063]
[1730884899364,0.846995,2617.8,2617.1,3.82092]
[1730884899568,4.59055,2617.5,2617.1,3.82092]
[1730884899765,0.7701,2617.5,2616.7,3.8215]
[1730884899993,3.82068,2617.4,2616.9,3.82129]
[1730884900169,7.64139,2617.4,2616.9,3.82129]
[1730884900371,0.841149,2617.3,2617.0,3.82115]
[1730884900596,0.841149,2617.3,2616.9,3.82129]
[1730884900597,0.7701,2617.5,2616.9,3.82129]
[1730884900805,4.59054,2617.5,2617.0,3.82104]
[1730884901009,0.8245,2616.9,2616.4,3.82191]
[1730884901154,0.8245,2616.9,2615.9,4.5924]
[1730884901155,3.82162,2616.7,2616.2,3.82225]
[1730884901355,3.82153,2616.8,2615.9,0.7697]
[1730884901601,3.82153,2616.8,2616.3,3.82207]
[1730884901767,4.64587,2616.9,2616.4,3.82196]
[1730884902096,9.31399,2616.9,2616.3,7.64418]
[1730884902283,3.82146,2616.8,2616.3,7.64417]
[1730884902465,3.82146,2616.8,2616.3,3.82207]
[1730884903270,3.82146,2616.8,2616.1,3.82237]
[1730884903271,3.82146,2616.8,2616.2,3.82232]
[1730884903471,4.752862,2616.8,2616.2,3.82232]
[1730884904101,3.82161,2616.7,2616.2,3.82232]
[1730884904405,4.752862,2616.8,2616.3,3.82214]
[1730884904613,3.82146,2616.8,2616.3,3.82214]
[1730884904771,3.82102,2617.1,2616.0,3.82252]
[1730884905105,0.8181,2616.6,2616.1,3.82236]
[1730884905277,4.63985,2616.6,2616.1,3.82236]
[1730884905481,4.63985,2616.6,2616.2,3.82232]
[1730884905797,0.8181,2616.6,2616.2,3.82233]
[1730884905961,0.8181,2616.6,2616.2,3.82225]
[1730884907014,0.7746,2616.8,2616.3,0.07644231]
[1730884907199,0.01,2617.9,2616.6,3.82172]
[1730884907200,0.7746,2617.1,2616.6,3.82172]
[1730884907506,0.7746,2617.1,2616.7,3.8215]
[1730884907812,0.756,2617.5,2616.4,0.8051]
[1730884908099,0.756,2617.5,2617.0,3.82108]
[1730884908603,0.756,2617.5,2617.0,7.64217]
[1730884908762,0.756,2617.5,2617.2,3.82074]
[1730884908961,0.756,2617.5,2617.1,3.82101]
[1730884909407,0.756,2617.5,2617.0,4.61386]
[1730884909569,4.57644,2617.5,2617.0,4.61386]
[1730884909775,4.57644,2617.5,2617.0,8.43494]
[1730884910466,5.416098,2617.5,2617.0,8.43495]
[1730884910686,5.416098,2617.5,2617.0,3.82106]
[1730884910904,5.416098,2617.5,2616.7,3.7989]
[1730884911067,5.416098,2617.5,2617.0,3.82107]
[1730884911268,5.416098,2617.5,2617.0,7.64215]
[1730884911502,0.8175,2617.9,2617.1,0.07641882]
[1730884911678,0.8175,2617.9,2617.5,3.82032]
[1730884911876,4.63736,2617.9,2616.9,3.82126]
[1730884912409,0.8175,2617.9,2616.8,0.7847]
[1730884912611,3.8201,2617.8,2617.2,3.82078]
[1730884912821,0.51838567,2617.7,2617.4,3.82045]
[1730884913112,0.8175,2617.9,2617.6,3.82015]
[1730884913807,0.8175,2617.9,2617.6,0.07640249]
[1730884914007,0.8181,2618.2,2617.8,3.82]
[1730884914232,1.281837,2618.2,2617.7,3.82012]
[1730884914526,5.101367,2618.2,2617.7,3.82012]
[1730884914903,5.101367,2618.2,2617.7,7.64018]
[1730884915105,5.101367,2618.2,2617.7,3.82006]
[1730884916026,0.8181,2618.2,2618.0,3.81963]
[1730884916237,0.8138,2618.4,2618.0,3.81963]
[1730884916388,0.8138,2618.4,2618.0,7.63926]
[1730884916729,3.81952,2618.2,2617.7,3.82011]
[1730884916894,8.484293,2618.2,2617.7,3.82011]
[1730884917295,3.81989,2617.9,2617.4,3.0]
[1730884917614,3.81989,2617.9,2617.5,3.82041]
[1730884917935,3.81972,2618.0,2617.5,7.64077]
[1730884918230,3.81972,2618.0,2617.5,3.82031]
[1730884918528,0.5437873,2618.0,2617.5,3.82031]
[1730884918885,0.7729,2618.1,2617.7,3.82007]
[1730884919629,0.7729,2618.1,2617.9,3.81985]
[1730884920134,0.7729,2618.1,2618.0,3.8197]
[1730884920427,0.7729,2618.1,2617.9,3.81985]
[1730884920749,3.81884,2618.6,2617.9,3.81977]
[1730884920750,7.6378,2618.6,2617.9,3.81977]
[1730884920949,1.59338,2618.5,2618.1,3.81955]
[1730884921238,1.59338,2618.5,2618.2,3.81941]
[1730884921438,0.8296,2618.5,2618.3,3.81916]
[1730884922135,0.7899,2618.7,2618.3,3.81916]
[1730884922486,0.7899,2618.7,2618.3,3.81927]
[1730884922892,0.7899,2618.7,2618.4,3.81911]
[1730884923130,0.7899,2618.7,2618.5,3.81884]
[1730884923336,0.786,2619.0,2618.6,3.81883]
[1730884923491,0.786,2619.0,2618.7,3.81868]
[1730884923928,1.28630155,2619.0,2618.5,3.81897]
[1730884924133,1.28630155,2619.0,2618.6,3.0]
[1730884924303,3.81841,2618.9,2618.6,3.0]
[1730884924491,1.28630155,2619.0,2618.1,3.81947]
[1730884924691,0.8324,2618.7,2618.2,6.8194]
[1730884924939,0.8324,2618.7,2618.0,3.0]
[1730884925233,3.81883,2618.6,2618.0,3.0]
[1730884925467,3.81912,2618.5,2617.9,7.63954]
[1730884925641,0.8225,2618.5,2617.7,3.82006]
[1730884925836,3.81935,2618.3,2617.7,3.82014]
[1730884926036,0.8083,2618.2,2617.2,0.8075]
[1730884926238,0.8083,2618.2,2617.5,3.82033]
[1730884926424,0.8083,2618.2,2617.6,3.82029]
[1730884926425,3.81956,2618.1,2617.6,3.82029]
[1730884926634,4.664281,2618.1,2617.6,3.82029]
[1730884927264,0.87098659,2619.1,2617.7,0.7821]
[1730884927435,3.81909,2618.5,2617.8,3.82]
[1730884927634,3.81915,2618.4,2617.9,3.0]
[1730884928068,4.663454,2618.4,2617.9,3.0]
[1730884928363,3.81932,2618.3,2617.9,3.0]
[1730884928527,0.844304,2618.4,2618.0,3.81961]
[1730884929121,4.663434,2618.4,2617.9,6.81984]
[1730884930156,0.844304,2618.4,2618.0,3.81966]
[1730884930325,0.844304,2618.4,2617.9,6.81984]
[1730884930526,4.663424,2618.4,2618.0,3.8197]
[1730884931363,0.844304,2618.4,2618.0,3.8197]
[1730884931673,0.8048,2618.6,2618.0,3.8197]
[1730884931963,3.81899,2618.5,2618.0,3.81964]
[1730884932327,3.81899,2618.5,2618.0,3.81961]
[1730884932527,3.81899,2618.5,2618.0,7.63922]
[1730884933072,3.81899,2618.5,2618.1,3.81951]
[1730884933236,0.8048,2618.6,2618.2,3.81941]
[1730884933561,5.086008,2618.6,2618.2,3.81941]
[1730884933978,1.267158,2618.6,2618.2,3.81933]
[1730884934144,5.086008,2618.6,2618.2,3.81933]
[1730884934322,0.5086008,2618.5,2617.8,6.8199]
[1730884934637,0.5086008,2618.5,2618.1,7.63898]
[1730884934841,0.5086008,2618.5,2618.2,3.81936]
[1730884935167,0.8048,2618.6,2618.4,3.81906]
[1730884935474,0.8048,2618.6,2618.2,3.81932]
[1730884935667,0.8048,2618.6,2618.4,3.81907]
[1730884936464,0.8048,2618.6,2618.3,3.81926]
[1730884936624,0.8048,2618.6,2618.3,7.63844]
[1730884936837,0.8048,2618.6,2618.3,3.81918]
[1730884937072,0.8048,2618.6,2618.4,3.81911]
[1730884937380,0.8048,2618.6,2618.3,3.81918]
[1730884938271,3.81948,2618.2,2617.7,3.82014]
[1730884938453,3.81948,2618.2,2617.8,6.81999]
[1730884939481,3.81922,2618.4,2617.8,6.81999]
[1730884939653,3.8192,2618.4,2617.8,6.81992]
[1730884939854,3.81929,2618.3,2617.9,3.81984]
[1730884940081,0.7735,2618.5,2617.6,3.0]
[1730884940244,0.7735,2618.5,2618.1,3.81948]
[1730884940445,1.27263229,2618.5,2618.1,3.81948]
[1730884940664,3.81928,2618.3,2617.7,3.82004]
[1730884940882,3.81928,2618.3,2617.9,6.81983]
[1730884941082,3.81928,2618.3,2617.8,3.0]
[1730884941278,3.81942,2618.2,2617.8,3.0]
[1730884941580,3.81939,2618.3,2617.8,6.81992]
[1730884941749,3.81944,2618.2,2617.8,3.0]
[1730884941943,3.81944,2618.2,2617.8,6.81998]
[1730884942175,1.27263229,2618.5,2617.4,0.8085]
[1730884942373,0.7735,2618.5,2618.1,3.81941]
[1730884942645,0.7735,2618.5,2618.1,7.6389]
[1730884942875,0.7735,2618.5,2617.9,0.7867]
[1730884943046,4.21771289,2618.7,2618.1,3.81946]
[1730884943265,3.819,2618.5,2618.1,3.81946]
[1730884943872,0.49883129,2618.6,2618.1,3.81946]
[1730884943873,4.31772129,2618.6,2618.1,3.81946]
[1730884944374,4.31772129,2618.6,2617.9,4.60644]
[1730884944582,3.81919,2618.4,2617.9,3.81974]
[1730884944769,0.461139,2618.3,2617.9,3.81974]
[1730884945082,0.461139,2618.3,2617.9,7.63951]
[1730884945278,0.461139,2618.3,2617.9,3.81974]
[1730884945578,0.461139,2618.3,2617.9,7.63948]
[1730884945881,0.461139,2618.3,2618.0,3.8197]
[1730884946583,0.461139,2618.3,2617.9,3.81974]
[1730884946744,3.81916,2618.4,2617.8,3.82]
[1730884947147,3.81916,2618.4,2617.9,3.81977]
[1730884947691,3.81944,2618.2,2617.7,3.82004]
[1730884947869,7.63899,2618.2,2617.7,3.82004]
[1730884948044,3.81978,2618.0,2617.5,3.82033]
[1730884948244,3.81978,2618.0,2616.7,8.29394414]
[1730884948245,3.81986,2617.9,2617.3,3.82061]
[1730884948448,3.81986,2617.9,2617.4,7.64107]
[1730884948790,3.81986,2617.9,2617.1,0.8162]
[1730884948791,1.517099,2618.1,2617.2,0.07640906]
[1730884948946,3.81973,2618.0,2617.5,3.82035]
[1730884949857,0.7532,2618.1,2617.6,0.8162]
[1730884950260,3.81908,2618.5,2617.6,0.8162]
[1730884950261,0.7532,2618.3,2618.0,3.81961]
[1730884950484,1.210428,2618.3,2618.1,3.81945]
[1730884950690,4.31767129,2618.6,2618.1,3.81945]
[1730884950860,0.7595,2618.6,2618.3,3.81918]
[1730884951052,0.8132,2618.7,2618.5,3.81891]
[1730884951903,0.39897171,2618.9,2618.5,3.81891]
[1730884952089,4.21744171,2618.9,2618.4,3.81912]
[1730884952404,4.71460588,2618.9,2618.4,3.81911]
[1730884953476,8.53308588,2618.9,2618.4,3.81911]
[1730884953679,4.71460588,2618.9,2618.4,3.81911]
[1730884953999,8.53309588,2618.9,2618.3,3.81917]
[1730884954201,3.81861,2618.8,2618.3,3.81917]
[1730884954390,5.12920059,2618.8,2618.3,3.81917]
[1730884955559,3.81883,2618.7,2618.1,3.81948]
[1730884955763,0.7716,2618.8,2617.9,4.62987]
[1730884955995,3.81875,2618.7,2617.9,4.62984]
[1730884956173,3.81875,2618.7,2618.2,3.81927]
[1730884956776,3.81892,2618.6,2618.1,3.81952]
[1730884957104,3.81912,2618.5,2617.9,4.62986]
[1730884957277,4.582925,2618.4,2618.0,3.81969]
[1730884958014,3.81881,2618.7,2618.2,3.81933]
[1730884958314,4.61625,2618.8,2618.3,3.81925]
[1730884958471,4.61625,2618.8,2618.4,3.819]
[1730884959200,3.81869,2618.7,2618.2,4.65111]
[1730884959410,4.662324,2618.6,2618.2,4.65111]
[1730884959611,4.61625,2618.8,2618.2,4.65103]
[1730884959909,8.43489,2618.8,2618.3,3.81927]
[1730884960311,0.7977,2618.8,2618.5,3.81896]
[1730884960490,0.39895943,2618.9,2618.5,3.81896]
[1730884960690,4.57061,2619.0,2618.5,7.63786]
[1730884961023,3.81847,2618.9,2618.4,3.81902]
[1730884961178,3.81847,2618.9,2618.5,3.81897]
[1730884961379,5.409425,2619.0,2618.5,3.8189]
[1730884962314,9.227815,2619.0,2618.5,3.8189]
[1730884962474,3.81847,2618.9,2618.4,3.81911]
[1730884962678,4.7412595,2618.9,2618.4,3.81911]
[1730884963082,0.9227895,2618.9,2618.5,3.81895]
[1730884963272,4.57056,2619.0,2618.5,3.81895]
[1730884963477,3.8184,2618.9,2618.5,3.81895]
[1730884963723,4.57056,2619.0,2618.5,3.81895]
[1730884964026,3.81851,2618.9,2618.4,3.81911]
[1730884964509,7.63721,2618.8,2618.3,3.81926]
[1730884964712,3.81878,2618.7,2618.2,4.65102]
[1730884965010,0.838951,2618.8,2618.5,3.81895]
[1730884965217,4.57063,2619.0,2618.5,3.81895]
[1730884965424,8.38897,2619.0,2618.5,3.81895]
[1730884965579,4.57063,2619.0,2618.5,3.81895]
[1730884966213,5.44939428,2619.0,2618.6,3.81882]
[1730884966416,4.21697279,2619.2,2618.7,3.81861]
[1730884966711,3.81811,2619.1,2618.7,3.81861]
[1730884967689,8.03506279,2619.2,2618.7,3.81861]
[1730884967887,4.21697279,2619.2,2618.7,4.60101]
[1730884968127,4.21697279,2619.2,2618.7,8.4196]
[1730884968314,5.09852607,2619.2,2618.7,4.60099]
[1730884968486,8.91659607,2619.2,2618.7,4.60099]
[1730884968685,3.81811,2619.1,2618.7,4.60099]
[1730884968891,5.09850607,2619.2,2618.7,4.60099]
[1730884969091,5.09850607,2619.2,2618.3,3.81925]
[1730884969092,0.39893279,2619.2,2618.8,0.07637103]
[1730884969336,0.39893279,2619.2,2619.1,4.6274]
[1730884969489,0.8007,2620.2,2619.7,3.81714]
[1730884969689,0.39877111,2619.8,2619.7,3.81714]
[1730884970124,3.8165,2620.2,2619.7,3.81714]
[1730884970332,3.8165,2620.2,2619.6,0.8075]
[1730884970632,3.81665,2620.1,2619.6,4.62486]
[1730884970932,4.579965,2620.1,2619.6,4.62486]
[1730884971423,4.579965,2620.1,2619.6,0.8075]
[1730884971626,3.81686,2620.0,2619.6,0.8075]
[1730884972005,3.81686,2620.0,2619.6,4.62486]
[1730884972208,4.579965,2620.1,2619.6,3.81736]
[1730884972615,3.81665,2620.1,2619.6,3.81736]
[1730884972832,3.81651,2620.2,2619.7,3.8172]
[1730884973030,3.81665,2620.1,2619.7,3.8172]
[1730884973335,3.81665,2620.1,2619.6,3.8173]
[1730884973895,0.7792,2620.4,2619.8,0.7854]
[1730884974120,4.59549,2620.4,2619.9,3.81692]
[1730884974304,0.459535,2620.3,2619.9,3.81692]
[1730884974510,0.459535,2620.3,2619.9,3.81686]